[Event "ESP-chT 2nd Division 2019"]
[Site "Linares"]
[Date "2019.08.20"]
[Round "2.5"]
[White "Sosa Suarez, Carla Cristina"]
[Black "Estevez Sacristan, Deva"]
[Result "1-0"]
[ECO "B36"]
[WhiteElo "2135"]
[BlackElo "1957"]
[Annotator "ChessBase"]
[PlyCount "121"]
[EventDate "2019.08.19"]
[EventType "team-tourn"]
[EventCountry "ESP"]
[SourceTitle "playchess.com"]
[Source "ChessBase"]
[SourceQuality "1"]
[TimeControl "5400+30"]

1. e4 {[%emt 0:00:00]} c5 {[%emt 0:00:00]} 2. Nf3 {[%emt 0:00:00]} g6 {[%emt 0:00:00]} 3. d4 {[%emt 0:00:00]} cxd4 {[%emt 0:00:02]} 4. Nxd4 {[%emt 0:00:02]} Nc6 {[%emt 0:00:08]} 5. c4 {[%emt 0:03:17]} Nf6 {[%emt 0:00:59]} 6. Nc3 {[%emt 0:00:27]} d6 {[%emt 0:01:09]} 7. Be2 {[%emt 0:01:36]} Nxd4 {[%emt 0:01:16]} 8. Qxd4 {[%emt 0:00:05]} Bg7 {[%emt 0:00:16]} 9. Be3 {[%emt 0:01:36]} O-O {[%emt 0:00:26]} 10. Qd3 {[%emt 0:03:27]} Ng4 {[%emt 0:05:18]} 11. Bxg4 {[%emt 0:02:10]} Bxg4 {[%emt 0:00:16]} 12. O-O {[%emt 0:01:11]} Be6 {[%emt 0:06:23]} 13. Bd4 {[%emt 0:02:01]} Qc7 {[%emt 0:13:41]} 14. b3 {[%emt 0:04:21]} Bxd4 {[%emt 0:06:50]} 15. Qxd4 {[%emt 0:00:05]} Qc5 {[%emt 0:03:47]} 16. Qd2 {[%emt 0:01:01]} Rfe8 {[%emt 0:07:53]} 17. Rae1 {[%emt 0:01:57]} a6 {[%emt 0:02:34]} 18. Nd5 {[%emt 0:09:15]} b5 {[%emt 0:06:21]} 19. b4 {[%emt 0:08:20]} Qa7 {[%emt 0:01:20]} 20. Rc1 {[%emt 0:05:48]} Rac8 {[%emt 0:03:41]} 21. cxb5 {[%emt 0:01:11]} axb5 {[%emt 0:00:34]} 22. h4 {[%emt 0:02:20]} Bxd5 {[%emt 0:03:59]} 23. Qxd5 {[%emt 0:01:23]} Qa8 {[%emt 0:03:33]} 24. Qxb5 {[%emt 0:07:52]} Qxa2 {[%emt 0:05:47]} 25. h5 {[%emt 0:02:51]} Qe6 {[%emt 0:02:45]} 26. Rxc8 {[%emt 0:04:00]} Rxc8 {[%emt 0:00:27]} 27. Qb7 {[%emt 0:00:31]} gxh5 {[%emt 0:03:13]} 28. Ra1 {[%emt 0:02:13]} Kg7 {[%emt 0:05:40]} 29. b5 {[%emt 0:06:02]} Qe5 {[%emt 0:03:05]} 30. Qa6 {[%emt 0:04:19]} Rb8 {[%emt 0:01:04]} 31. Rb1 {[%emt 0:03:26]} Qxe4 {[%emt 0:00:38]} 32. Qa1+ {[%emt 0:01:06]} Qe5 {[%emt 0:00:52]} 33. Qa4 {[%emt 0:01:32]} Qf5 {[%emt 0:02:55]} 34. Rb3 {[%emt 0:01:09]} Qe5 {[%emt 0:04:07]} 35. Qb4 {[%emt 0:02:45]} f6 {[%emt 0:02:18]} 36. Rg3+ {[%emt 0:03:02]} Kf7 {[%emt 0:00:31]} 37. Qb3+ {[%emt 0:00:39]} d5 {[%emt 0:01:13]} 38. b6 {[%emt 0:01:07]} h4 {[%emt 0:01:56]} 39. Re3 {[%emt 0:00:39]} Qd6 {[%emt 0:00:41]} 40. b7 {[%emt 0:01:26]} Qc6 {[%emt 0:00:32]} 41. Qd3 {[%emt 0:01:22]} Qc1+ {[%emt 0:00:43]} 42. Kh2 {[%emt 0:00:42]} Qc7+ {[%emt 0:00:08]} 43. g3 {[%emt 0:01:11]} Qxb7 {[%emt 0:01:04]} 44. Qxh7+ {[%emt 0:00:53]} Ke8 {[%emt 0:00:19]} 45. Qg6+ {[%emt 0:00:34]} Kd8 {[%emt 0:01:19]} 46. Qg8+ {[%emt 0:00:33]} Kd7 {[%emt 0:00:22]} 47. Qe6+ {[%emt 0:00:31]} Kd8 {[%emt 0:00:40]} 48. Rd3 {[%emt 0:02:01]} hxg3+ {[%emt 0:00:14]} 49. Rxg3 {[%emt 0:00:52]} Qb6 {[%emt 0:00:54]} 50. Rg8+ {[%emt 0:01:14]} Kc7 {[%emt 0:00:05]} 51. Qxe7+ {[%emt 0:00:40]} Kc6 {[%emt 0:00:05]} 52. Qxf6+ {[%emt 0:00:28]} Kc5 {[%emt 0:00:37]} 53. Qc3+ {[%emt 0:01:00]} Kb5 {[%emt 0:00:16]} 54. Qd3+ {[%emt 0:00:50]} Ka4 {[%emt 0:00:57]} 55. Rg4+ Ka5 {[%emt 0:00:19]} 56. Qa3+ {[%emt 0:02:07]} Kb5 {[%emt 0:00:05]} 57. Rb4+ {[%emt 0:00:16]} Kc6 {[%emt 0:00:20]} 58. Rxb6+ {[%emt 0:00:06]} Rxb6 {[%emt 0:00:10]} 59. Qc3+ {[%emt 0:00:33]} Kd6 {[%emt 0:00:14]} 60. Qd4 {[%emt 0:00:38]} Rc6 {[%emt 0:00:37]} 61. f4 {[%emt 0:00:48]} 1-0

[Event "ESP-chT 2nd Division 2019"]
[Site "Linares"]
[Date "2019.08.20"]
[Round "2.7"]
[White "Nayhebaver, Martin"]
[Black "Martin Gonzalez, Angel"]
[Result "1-0"]
[ECO "B77"]
[WhiteElo "2469"]
[BlackElo "2334"]
[Annotator "ChessBase"]
[PlyCount "99"]
[EventDate "2019.08.19"]
[EventType "team-tourn"]
[EventCountry "ESP"]
[SourceTitle "playchess.com"]
[Source "ChessBase"]
[SourceQuality "1"]
[TimeControl "5400+30"]

1. e4 {[%emt 0:00:00]} c5 {[%emt 0:00:00]} 2. Nf3 {[%emt 0:00:14]} d6 {[%emt 0:00:00]} 3. d4 {[%emt 0:00:24]} cxd4 {[%emt 0:00:00]} 4. Nxd4 {[%emt 0:00:04]} Nf6 {[%emt 0:00:08]} 5. Nc3 {[%emt 0:00:06]} g6 {[%emt 0:00:08]} 6. Be3 {[%emt 0:00:41]} Bg7 {[%emt 0:00:11]} 7. f3 {[%emt 0:00:33]} Nc6 {[%emt 0:00:08]} 8. Qd2 {[%emt 0:00:41]} O-O {[%emt 0:00:12]} 9. Bc4 {[%emt 0:00:33]} Bd7 {[%emt 0:00:11]} 10. Bb3 {[%emt 0:00:11]} Rc8 {[%emt 0:00:36]} 11. O-O-O {[%emt 0:00:26]} Nxd4 {[%emt 0:00:15]} 12. Bxd4 {[%emt 0:00:33]} b5 {[%emt 0:00:06]} 13. a3 {[%emt 0:12:36]} a5 {[%emt 0:02:24]} 14. Nd5 {[%emt 0:03:02]} Nxd5 {[%emt 0:01:03]} 15. Bxg7 {[%emt 0:00:20]} Kxg7 {[%emt 0:00:10]} 16. Bxd5 {[%emt 0:00:40]} Qb6 {[%emt 0:14:03]} 17. h4 {[%emt 0:05:39]} b4 {[%emt 0:04:54]} 18. axb4 {[%emt 0:01:35]} axb4 {[%emt 0:00:12]} 19. Qd4+ {[%emt 0:06:23]} Qxd4 {[%emt 0:00:51]} 20. Rxd4 {[%emt 0:00:03]} Rb8 {[%emt 0:01:21]} 21. Kd2 {[%emt 0:00:52]} Rfc8 {[%emt 0:02:34]} 22. Ra1 {[%emt 0:02:41]} Rc7 {[%emt 0:00:32]} 23. Ra8 {[%emt 0:01:57]} Rb6 {[%emt 0:00:31]} 24. Rc4 {[%emt 0:01:54]} Rxc4 {[%emt 0:08:46]} 25. Bxc4 {[%emt 0:00:09]} Kf6 {[%emt 0:08:14]} 26. g4 {[%emt 0:02:54]} h6 {[%emt 0:00:39]} 27. Ke3 {[%emt 0:05:49]} g5 {[%emt 0:07:34]} 28. h5 e6 {[%emt 0:07:49]} 29. Rd8 {[%emt 0:06:29]} Ke7 {[%emt 0:03:45]} 30. Rh8 {[%emt 0:03:13]} Kf6 {[%emt 0:00:10]} 31. Rh7 {[%emt 0:01:08]} Ba4 {[%emt 0:04:15]} 32. Bd3 {[%emt 0:10:25]} Be8 {[%emt 0:12:20]} 33. f4 {[%emt 0:01:44]} gxf4+ {[%emt 0:01:43]} 34. Kxf4 {[%emt 0:00:05]} e5+ {[%emt 0:00:17]} 35. Kg3 {[%emt 0:00:08]} Kg5 {[%emt 0:00:54]} 36. Rg7+ {[%emt 0:00:11]} Kf6 {[%emt 0:00:07]} 37. Rg8 {[%emt 0:00:22]} Ke7 {[%emt 0:03:12]} 38. Bc4 {[%emt 0:07:25]} Bc6 {[%emt 0:10:04]} 39. Kf3 {[%emt 0:00:17]} Bb7 {[%emt 0:03:25]} 40. Bd5 {[%emt 0:05:21]} Bxd5 {[%emt 0:00:53]} 41. exd5 {[%emt 0:00:02]} f6 {[%emt 0:00:21]} 42. Rg7+ {[%emt 0:00:55]} Kf8 {[%emt 0:00:13]} 43. Rc7 {[%emt 0:00:52]} Rb5 {[%emt 0:02:14]} 44. Ke4 {[%emt 0:00:20]} Rc5 {[%emt 0:00:38]} 45. Rxc5 {[%emt 0:00:41]} dxc5 {[%emt 0:00:01]} 46. d6 {[%emt 0:00:14]} Ke8 {[%emt 0:01:24]} 47. Kd5 {[%emt 0:00:14]} Kd7 {[%emt 0:00:16]} 48. Kxc5 {[%emt 0:00:09]} e4 {[%emt 0:00:33]} 49. Kd4 {[%emt 0:00:14]} Kxd6 {[%emt 0:00:06]} 50. Kxe4 {[%emt 0:00:06] Kd5+} 1-0

[Event "ESP-chT 2nd Division 2019"]
[Site "Linares"]
[Date "2019.08.20"]
[Round "2.8"]
[White "Jimenez Ruano, Adrian"]
[Black "Khamrakulov, Ibragim S."]
[Result "1/2-1/2"]
[ECO "E41"]
[WhiteElo "2278"]
[BlackElo "2429"]
[Annotator "ChessBase"]
[PlyCount "117"]
[EventDate "2019.08.19"]
[EventType "team-tourn"]
[EventCountry "ESP"]
[SourceTitle "playchess.com"]
[Source "ChessBase"]
[SourceQuality "1"]
[TimeControl "5400+30"]

1. d4 Nf6 {[%emt 0:07:18]} 2. c4 {[%emt 0:00:00]} e6 {[%emt 0:00:25]} 3. Nc3 {[%emt 0:00:00]} Bb4 {[%emt 0:00:39]} 4. e3 {[%emt 0:00:00]} c5 {[%emt 0:00:29]} 5. Bd3 {[%emt 0:00:00]} d5 {[%emt 0:01:36]} 6. cxd5 {[%emt 0:00:09]} Nxd5 {[%emt 0:00:36]} 7. Nge2 {[%emt 0:00:06]} cxd4 {[%emt 0:00:58]} 8. exd4 {[%emt 0:00:08]} O-O {[%emt 0:00:59]} 9. O-O {[%emt 0:00:05]} Nc6 {[%emt 0:00:13]} 10. Nxd5 {[%emt 0:00:05]} Qxd5 {[%emt 0:00:31]} 11. a3 {[%emt 0:00:08]} Be7 {[%emt 0:00:16]} 12. Qc2 {[%emt 0:01:19]} g6 {[%emt 0:03:57]} 13. Be3 {[%emt 0:00:06]} Bf6 {[%emt 0:00:33]} 14. Rfd1 {[%emt 0:03:55]} Ne7 {[%emt 0:04:36]} 15. Rac1 {[%emt 0:09:16]} Qa5 {[%emt 0:08:19]} 16. Nc3 {[%emt 0:02:13]} Bd7 {[%emt 0:01:02]} 17. Ne4 {[%emt 0:03:50]} Bg7 {[%emt 0:10:17]} 18. Qc7 {[%emt 0:00:31]} Qxc7 {[%emt 0:07:13]} 19. Rxc7 {[%emt 0:00:19]} Ba4 {[%emt 0:00:27]} 20. Rdc1 {[%emt 0:01:22]} Nd5 {[%emt 0:03:39]} 21. Rxb7 {[%emt 0:01:34]} Rfb8 {[%emt 0:00:35]} 22. Ba6 {[%emt 0:04:26]} Rd8 {[%emt 0:06:56]} 23. Bg5 {[%emt 0:09:21]} Rf8 {[%emt 0:01:10]} 24. b3 {[%emt 0:05:42]} Be8 {[%emt 0:00:42]} 25. Be3 {[%emt 0:07:40]} e5 {[%emt 0:04:22]} 26. dxe5 {[%emt 0:04:35]} Nxe3 {[%emt 0:01:16]} 27. fxe3 {[%emt 0:00:11]} Bxe5 {[%emt 0:00:04]} 28. Rc5 {[%emt 0:01:20]} f6 {[%emt 0:09:34]} 29. Bc4+ {[%emt 0:01:20]} Bf7 {[%emt 0:00:07]} 30. Rxf7 {[%emt 0:00:55]} Rxf7 {[%emt 0:00:13]} 31. Rxe5 {[%emt 0:00:15]} fxe5 {[%emt 0:00:07]} 32. Nd6 {[%emt 0:00:43]} Kg7 {[%emt 0:00:05]} 33. Nxf7 {[%emt 0:00:45]} Kf6 {[%emt 0:00:14]} 34. Kf2 {[%emt 0:01:23]} e4 {[%emt 0:02:47]} 35. Ke2 {[%emt 0:03:16]} Rb8 {[%emt 0:00:47]} 36. Nd6 {[%emt 0:02:07]} Ke5 {[%emt 0:00:32]} 37. Nb5 {[%emt 0:00:29]} a5 {[%emt 0:00:55]} 38. Nc3 {[%emt 0:06:10]} Rc8 {[%emt 0:00:29]} 39. a4 {[%emt 0:06:31]} Rc6 {[%emt 0:01:00]} 40. Nb1 {[%emt 0:02:04]} Kd6 {[%emt 0:02:58]} 41. Nd2 {[%emt 0:00:32]} Ke5 {[%emt 0:00:24]} 42. Bg8 {[%emt 0:07:21]} h5 {[%emt 0:01:44]} 43. Nc4+ {[%emt 0:12:36]} Kf5 {[%emt 0:00:20]} 44. Nxa5 {[%emt 0:01:15]} Rc2+ {[%emt 0:00:08]} 45. Kf1 {[%emt 0:00:07]} Rc1+ {[%emt 0:00:05]} 46. Kf2 {[%emt 0:00:05]} Rc2+ {[%emt 0:01:23]} 47. Kg3 {[%emt 0:01:13]} g5 {[%emt 0:01:36]} 48. h3 {[%emt 0:01:53]} h4+ {[%emt 0:08:34]} 49. Kh2 {[%emt 0:00:01]} g4 {[%emt 0:00:01]} 50. hxg4+ {[%emt 0:01:56]} Kxg4 {[%emt 0:00:02]} 51. Be6+ {[%emt 0:00:14]} Kg5 {[%emt 0:00:12]} 52. Nc4 {[%emt 0:01:11]} Rc3 {[%emt 0:00:33]} 53. a5 {[%emt 0:01:50]} Rxb3 {[%emt 0:00:14]} 54. a6 {[%emt 0:00:06]} Rb4 {[%emt 0:01:12]} 55. Nd2 {[%emt 0:00:47]} Ra4 {[%emt 0:01:41]} 56. Bc8 {[%emt 0:00:10]} Kf6 {[%emt 0:01:06]} 57. Bb7 {[%emt 0:00:09]} Ke5 {[%emt 0:00:22]} 58. Nxe4 {[%emt 0:00:15]} Ra3 {[%emt 0:00:35]} 59. Nc3 {[%emt 0:01:00]} 1/2-1/2

[Event "ESP-chT 2nd Division 2019"]
[Site "Linares"]
[Date "2019.08.20"]
[Round "2.9"]
[White "Soham Das"]
[Black "Cano Sevilla, Ivan"]
[Result "1-0"]
[ECO "B38"]
[WhiteElo "2339"]
[BlackElo "1995"]
[Annotator "ChessBase"]
[PlyCount "95"]
[EventDate "2019.08.19"]
[EventType "team-tourn"]
[EventCountry "ESP"]
[SourceTitle "playchess.com"]
[Source "ChessBase"]
[SourceQuality "1"]
[TimeControl "5400+30"]

1. e4 {[%emt 0:00:00]} c5 {[%emt 0:00:00]} 2. Nf3 {[%emt 0:00:08]} g6 {[%emt 0:00:00]} 3. d4 {[%emt 0:00:10]} cxd4 {[%emt 0:00:00]} 4. Nxd4 {[%emt 0:00:04]} Bg7 {[%emt 0:00:00]} 5. c4 Nc6 {[%emt 0:00:00]} 6. Be3 {[%emt 0:00:12]} Nf6 {[%emt 0:00:00]} 7. Nc3 {[%emt 0:00:05]} d6 {[%emt 0:00:07]} 8. Be2 {[%emt 0:00:28]} O-O {[%emt 0:00:08]} 9. O-O {[%emt 0:00:50]} Bd7 {[%emt 0:00:01]} 10. f3 {[%emt 0:23:48]} Nxd4 {[%emt 0:02:51]} 11. Bxd4 {[%emt 0:00:13]} Bc6 {[%emt 0:00:05]} 12. b4 {[%emt 0:00:12]} Nh5 {[%emt 0:00:02]} 13. Kh1 {[%emt 0:27:04]} Bxd4 {[%emt 0:08:25]} 14. Qxd4 {[%emt 0:00:01]} Nf4 {[%emt 0:02:10]} 15. Rfd1 {[%emt 0:04:02]} Qb6 {[%emt 0:12:23]} 16. Qxb6 {[%emt 0:04:58]} axb6 {[%emt 0:00:17]} 17. Bf1 {[%emt 0:03:18]} Ra3 {[%emt 0:02:53]} 18. Rac1 {[%emt 0:00:14]} Rc8 {[%emt 0:02:44]} 19. b5 {[%emt 0:10:08]} Bd7 {[%emt 0:01:02]} 20. g3 {[%emt 0:03:00]} Nh3 {[%emt 0:01:18]} 21. Rd2 {[%emt 0:03:42]} Ng5 {[%emt 0:02:10]} 22. Be2 {[%emt 0:01:25]} Kf8 {[%emt 0:09:21]} 23. h4 {[%emt 0:03:26]} Ne6 {[%emt 0:00:11]} 24. e5 {[%emt 0:00:10]} Nc7 {[%emt 0:01:39]} 25. exd6 {[%emt 0:01:53]} exd6 {[%emt 0:00:01]} 26. Rxd6 {[%emt 0:02:32]} Nxb5 {[%emt 0:13:54]} 27. cxb5 {[%emt 0:01:18]} Be6 {[%emt 0:00:00]} 28. Rd3 {[%emt 0:02:00]} Rc5 {[%emt 0:04:42]} 29. Kg2 {[%emt 0:03:22]} Bc4 {[%emt 0:00:40]} 30. Rd2 {[%emt 0:01:13]} Be6 {[%emt 0:01:29]} 31. Rdc2 {[%emt 0:00:25]} Bf5 {[%emt 0:00:05]} 32. Ne4 {[%emt 0:00:05]} Rxa2 {[%emt 0:01:56]} 33. Rxa2 {[%emt 0:05:10]} Rxc1 {[%emt 0:00:01]} 34. Ra7 {[%emt 0:00:27]} Rc2 {[%emt 0:02:51]} 35. Kf2 {[%emt 0:00:09]} Be6 {[%emt 0:01:10]} 36. Ke3 {[%emt 0:00:40]} Rc7 {[%emt 0:01:00]} 37. Ng5 {[%emt 0:00:43]} Bd5 {[%emt 0:01:18]} 38. Nxh7+ {[%emt 0:00:07]} Ke7 {[%emt 0:00:30]} 39. Ng5 {[%emt 0:00:02]} f5 {[%emt 0:00:46]} 40. Kd4 {[%emt 0:00:18]} Kd6 {[%emt 0:00:17]} 41. Ra8 {[%emt 0:00:11]} Rd7 {[%emt 0:01:13]} 42. Bc4 {[%emt 0:00:01]} Bxc4 {[%emt 0:00:48]} 43. Kxc4 {[%emt 0:00:02]} Rc7+ {[%emt 0:00:07]} 44. Kb4 {[%emt 0:00:01]} Kd5 {[%emt 0:00:25]} 45. Rd8+ {[%emt 0:00:09]} Ke5 {[%emt 0:00:09]} 46. f4+ {[%emt 0:00:12]} Kf6 {[%emt 0:00:18]} 47. Rd6+ {[%emt 0:00:02]} Kg7 {[%emt 0:00:24]} 48. Ne6+ {[%emt 0:00:01]} 1-0

[Event "ESP-chT 2nd Division 2019"]
[Site "Linares"]
[Date "2019.08.20"]
[Round "2.10"]
[White "Catalan Gasque, Noelia"]
[Black "Calzetta Ruiz, Monica"]
[Result "0-1"]
[ECO "A46"]
[WhiteElo "1789"]
[BlackElo "2257"]
[Annotator "ChessBase"]
[PlyCount "43"]
[EventDate "2019.08.19"]
[EventType "team-tourn"]
[EventCountry "ESP"]
[SourceTitle "playchess.com"]
[Source "ChessBase"]
[SourceQuality "1"]
[TimeControl "5400+30"]

1. d4 {[%emt 0:00:00]} Nf6 {[%emt 0:00:00]} 2. Nf3 {[%emt 0:00:00]} c5 {[%emt 0:00:00]} 3. dxc5 {[%emt 0:05:55]} g6 {[%emt 0:02:55]} 4. g3 {[%emt 0:06:39]} Bg7 {[%emt 0:00:33]} 5. Bg2 {[%emt 0:00:14]} Na6 {[%emt 0:02:58]} 6. O-O {[%emt 0:06:15]} Nxc5 {[%emt 0:00:44]} 7. Nbd2 {[%emt 0:04:02]} O-O {[%emt 0:02:51]} 8. c4 {[%emt 0:07:54]} d6 {[%emt 0:06:10]} 9. Nb3 {[%emt 0:07:57]} Nce4 {[%emt 0:19:35]} 10. Ng5 {[%emt 0:05:53]} Nxg5 {[%emt 0:10:13]} 11. Bxg5 {[%emt 0:00:12]} Be6 {[%emt 0:00:05]} 12. Rc1 {[%emt 0:13:52]} Rc8 {[%emt 0:00:44]} 13. Qd3 {[%emt 0:05:37]} Qd7 {[%emt 0:08:30]} 14. Nd4 {[%emt 0:04:40]} Bh3 {[%emt 0:01:50]} 15. b3 {[%emt 0:03:30]} Rc5 {[%emt 0:03:03]} 16. Nf3 {[%emt 0:14:36]} h6 {[%emt 0:01:51]} 17. Bd2 {[%emt 0:01:46]} Rh5 {[%emt 0:00:12]} 18. Nh4 {[%emt 0:01:58]} g5 {[%emt 0:02:54]} 19. Nf3 {[%emt 0:05:51]} Bxg2 {[%emt 0:00:27]} 20. Kxg2 {[%emt 0:00:45]} Qh3+ {[%emt 0:00:22]} 21. Kg1 {[%emt 0:00:40]} Ng4 {[%emt 0:00:23]} 22. Nh4 0-1

[Event "ESP-chT 2nd Division 2019"]
[Site "Linares"]
[Date "2019.08.20"]
[Round "2.11"]
[White "Adla, Diego"]
[Black "Vinuela Diaz, Saul"]
[Result "1-0"]
[ECO "A18"]
[WhiteElo "2424"]
[BlackElo "2310"]
[Annotator "ChessBase"]
[PlyCount "59"]
[EventDate "2019.08.19"]
[EventType "team-tourn"]
[EventCountry "ESP"]
[SourceTitle "playchess.com"]
[Source "ChessBase"]
[SourceQuality "1"]
[TimeControl "5400+30"]

1. c4 {[%emt 0:00:00]} Nf6 {[%emt 0:00:00]} 2. Nc3 {[%emt 0:00:00]} e6 {[%emt 0:00:00]} 3. e4 {[%emt 0:00:00]} d5 {[%emt 0:00:01]} 4. e5 {[%emt 0:00:00]} d4 {[%emt 0:00:54]} 5. exf6 {[%emt 0:00:00]} dxc3 {[%emt 0:00:05]} 6. bxc3 {[%emt 0:00:00]} Qxf6 {[%emt 0:04:29]} 7. Nf3 {[%emt 0:00:03]} Nd7 {[%emt 0:01:45]} 8. d4 {[%emt 0:00:08]} h6 {[%emt 0:01:06]} 9. Bd3 {[%emt 0:00:05]} c5 {[%emt 0:03:54]} 10. O-O {[%emt 0:00:10]} Bd6 {[%emt 0:03:01]} 11. Re1 {[%emt 0:00:12]} O-O {[%emt 0:01:00]} 12. Qe2 {[%emt 0:00:13]} Rd8 {[%emt 0:03:09]} 13. Ba3 {[%emt 0:01:45]} Rb8 {[%emt 0:02:28]} 14. Qe4 {[%emt 0:00:26]} g6 {[%emt 0:01:45]} 15. Rad1 {[%emt 0:04:44]} b6 {[%emt 0:02:34]} 16. Bc1 {[%emt 0:01:19]} Bb7 {[%emt 0:01:48]} 17. d5 {[%emt 0:00:06]} Bf8 {[%emt 0:08:00]} 18. h4 {[%emt 0:08:49]} Qg7 {[%emt 0:04:55]} 19. Bf4 {[%emt 0:03:35]} Rbc8 {[%emt 0:00:48]} 20. Qe3 {[%emt 0:11:01]} exd5 {[%emt 0:02:14]} 21. cxd5 {[%emt 0:00:12]} Qxc3 {[%emt 0:07:43]} 22. h5 {[%emt 0:02:10]} c4 {[%emt 0:03:10]} 23. hxg6 {[%emt 0:00:06]} cxd3 {[%emt 0:00:43]} 24. gxf7+ {[%emt 0:01:26]} Kh7 {[%emt 0:03:45]} 25. Qe4+ {[%emt 0:02:45]} Kh8 {[%emt 0:01:40]} 26. Ne5 {[%emt 0:01:16]} Nf6 {[%emt 0:04:49]} 27. Qf5 {[%emt 0:08:14]} Rd6 {[%emt 0:11:32]} 28. Ng6+ {[%emt 0:02:01]} Kg7 {[%emt 0:00:05]} 29. Nxf8 {[%emt 0:00:07]} Rxd5 {[%emt 0:01:10]} 30. Qg6+ 1-0

[Event "ESP-chT 2nd Division 2019"]
[Site "Linares"]
[Date "2019.08.20"]
[Round "2.12"]
[White "Centron Antuna, Daniel"]
[Black "Glavina, Pablo"]
[Result "0-1"]
[ECO "C44"]
[WhiteElo "2187"]
[BlackElo "2407"]
[Annotator "ChessBase"]
[PlyCount "50"]
[EventDate "2019.08.19"]
[EventType "team-tourn"]
[EventCountry "ESP"]
[SourceTitle "playchess.com"]
[Source "ChessBase"]
[SourceQuality "1"]
[TimeControl "5400+30"]

1. e4 {[%emt 0:00:00]} e5 {[%emt 0:00:00]} 2. Nf3 {[%emt 0:00:00]} Nc6 {[%emt 0:00:00]} 3. d4 {[%emt 0:00:02]} exd4 {[%emt 0:00:00]} 4. Nxd4 {[%emt 0:00:08]} Nf6 {[%emt 0:00:00]} 5. Nxc6 {[%emt 0:00:49]} bxc6 {[%emt 0:00:04]} 6. Qe2 {[%emt 0:00:55]} d5 {[%emt 0:00:16]} 7. exd5+ {[%emt 0:03:49]} Be7 {[%emt 0:00:06]} 8. dxc6 {[%emt 0:11:10]} O-O {[%emt 0:00:11]} 9. Qd3 {[%emt 0:07:12]} Re8 {[%emt 0:04:42]} 10. Be2 {[%emt 0:07:51]} Bb4+ {[%emt 0:03:10]} 11. Bd2 {[%emt 0:01:48]} Qe7 {[%emt 0:00:53]} 12. Bxb4 {[%emt 0:03:22]} Qxb4+ {[%emt 0:00:05]} 13. Nc3 {[%emt 0:00:19]} Bg4 {[%emt 0:08:05]} 14. O-O-O {[%emt 0:12:17]} Rab8 {[%emt 0:02:47]} 15. b3 {[%emt 0:00:26]} Bf5 {[%emt 0:00:34]} 16. Qc4 {[%emt 0:04:24]} Qa3+ {[%emt 0:00:05]} 17. Kb1 {[%emt 0:00:10]} Rb4 {[%emt 0:00:09]} 18. Nb5 {[%emt 0:05:38]} Qa5 {[%emt 0:00:37]} 19. Qc5 {[%emt 0:00:42]} Rxe2 {[%emt 0:02:00]} 20. Qxf5 {[%emt 0:20:55]} Rxb5 {[%emt 0:00:27]} 21. Rd8+ {[%emt 0:04:13]} Ne8 {[%emt 0:00:09]} 22. Qc8 {[%emt 0:00:38]} Rbe5 {[%emt 0:00:12]} 23. f4 {[%emt 0:02:06]} Qc3 {[%emt 0:00:16]} 24. Rc1 {[%emt 0:00:33]} R5e4 {[%emt 0:00:27]} 25. Qd7 {[%emt 0:03:22]} Re1 {[%emt 0:01:00]} 0-1

[Event "ESP-chT 2nd Division 2019"]
[Site "Linares"]
[Date "2019.08.20"]
[Round "2.13"]
[White "Quintin Navarro, Alberto"]
[Black "Fernandez Torre, Ivan"]
[Result "1-0"]
[ECO "E92"]
[WhiteElo "2376"]
[BlackElo "2164"]
[Annotator "ChessBase"]
[PlyCount "73"]
[EventDate "2019.08.19"]
[EventType "team-tourn"]
[EventCountry "ESP"]
[SourceTitle "playchess.com"]
[Source "ChessBase"]
[SourceQuality "1"]
[TimeControl "5400+30"]

1. c4 {[%emt 0:00:00]} Nf6 {[%emt 0:00:00]} 2. Nc3 {[%emt 0:00:00]} g6 {[%emt 0:00:00]} 3. e4 {[%emt 0:00:00]} d6 {[%emt 0:00:00]} 4. d4 {[%emt 0:00:11]} Bg7 {[%emt 0:00:00]} 5. Nf3 {[%emt 0:00:18]} O-O {[%emt 0:00:47]} 6. Be2 {[%emt 0:00:17]} e5 {[%emt 0:00:23]} 7. d5 {[%emt 0:00:21]} a5 {[%emt 0:00:44]} 8. Bg5 {[%emt 0:00:24]} h6 {[%emt 0:01:45]} 9. Be3 {[%emt 0:01:24]} Ng4 {[%emt 0:04:19]} 10. Bd2 {[%emt 0:00:12]} f5 {[%emt 0:03:14]} 11. h3 {[%emt 0:01:09]} Nf6 {[%emt 0:00:55]} 12. exf5 {[%emt 0:00:30]} gxf5 {[%emt 0:01:47]} 13. Qc1 {[%emt 0:02:18]} Kh7 {[%emt 0:02:51]} 14. g4 {[%emt 0:02:43]} Ne4 {[%emt 0:05:19]} 15. Nxe4 {[%emt 0:01:00]} fxe4 {[%emt 0:00:02]} 16. Qc2 {[%emt 0:00:39]} Qf6 {[%emt 0:04:36]} 17. Qxe4+ {[%emt 0:01:06]} Qg6 {[%emt 0:00:02]} 18. Qe3 {[%emt 0:05:52]} Kg8 {[%emt 0:05:19]} 19. O-O-O {[%emt 0:10:41]} Na6 {[%emt 0:04:51]} 20. Nh4 {[%emt 0:07:48]} Qf6 {[%emt 0:03:09]} 21. Nf5 {[%emt 0:00:32]} Bxf5 {[%emt 0:06:50]} 22. gxf5 {[%emt 0:01:03]} Nb4 {[%emt 0:00:21]} 23. Rdg1 {[%emt 0:03:11]} e4 {[%emt 0:06:54]} 24. Qb3 {[%emt 0:02:54]} Qxf5 {[%emt 0:08:54]} 25. Bxh6 {[%emt 0:05:17]} Rf7 {[%emt 0:01:19]} 26. Bxg7 {[%emt 0:01:23]} Rxg7 {[%emt 0:00:33]} 27. Rxg7+ {[%emt 0:00:06]} Kxg7 {[%emt 0:00:03]} 28. Rg1+ {[%emt 0:01:05]} Kf7 {[%emt 0:03:43]} 29. Qg3 {[%emt 0:02:51]} Rf8 {[%emt 0:03:36]} 30. Qg7+ {[%emt 0:04:08]} Ke8 {[%emt 0:00:02]} 31. Qxc7 {[%emt 0:01:50]} e3 {[%emt 0:02:15]} 32. Qb8+ {[%emt 0:03:10]} Kf7 {[%emt 0:01:23]} 33. Qxb7+ {[%emt 0:00:17]} Ke8 {[%emt 0:00:03]} 34. Qb8+ {[%emt 0:00:23]} Kf7 {[%emt 0:00:09]} 35. Qa7+ {[%emt 0:00:19]} Ke8 {[%emt 0:00:57]} 36. Qxe3+ {[%emt 0:00:13]} Kf7 {[%emt 0:03:50]} 37. Bh5+ {[%emt 0:01:14]} 1-0